[Event "FIDE WSTC Open 50 2025"]
[Site "Prague"]
[Date "2025.02.18"]
[Round "2.7"]
[White "Nordenbaek, Jan"]
[Black "Hebden, Mark L"]
[Result "0-1"]
[Annotator "ChessBase"]
[ECO "C55"]
[WhiteElo "2192"]
[BlackElo "2363"]
[PlyCount "98"]
[EventDate "2025.02.17"]
[EventType "team-tourn"]
[EventCountry "CZE"]
[SourceTitle "playchess.com"]
[Source "ChessBase"]
[SourceQuality "1"]
[TimeControl "40/5400+30:1800+30"]

1. e4 {[%emt 0:00:28]} e5 {[%emt 0:00:20]} 2. Nf3 {[%emt 0:00:30]} Nc6 {[%emt 0:00:13]} 3. Bc4 {[%emt 0:00:34]} Nf6 {[%emt 0:00:12]} 4. d4 {[%emt 0:01:12]} exd4 {[%emt 0:00:25]} 5. e5 {[%emt 0:00:54]} Ne4 {[%emt 0:00:17]} 6. Qe2 {[%emt 0:00:12]} Nc5 {[%emt 0:00:10]} 7. O-O {[%emt 0:00:32]} Ne6 {[%emt 0:00:11]} 8. Rd1 {[%emt 0:01:12]} d5 {[%emt 0:05:00]} 9. exd6 {[%emt 0:00:37]} Bxd6 {[%emt 0:00:23]} 10. Bg5 {[%emt 0:09:00]} Qd7 {[%emt 0:01:32]} 11. c3 {[%emt 0:02:52]} O-O {[%emt 0:05:27]} 12. Bxe6 {[%emt 0:10:18]} Qxe6 {[%emt 0:00:35]} 13. Qxe6 {[%emt 0:00:06]} Bxe6 {[%emt 0:00:11]} 14. Nxd4 {[%emt 0:00:11]} Nxd4 {[%emt 0:05:30]} 15. cxd4 {[%emt 0:01:31]} h6 {[%emt 0:01:09]} 16. Be3 {[%emt 0:00:42]} Rfe8 {[%emt 0:06:23]} 17. Nc3 {[%emt 0:00:24]} Bd7 {[%emt 0:03:35]} 18. Rac1 {[%emt 0:02:29]} a6 {[%emt 0:00:34]} 19. d5 {[%emt 0:05:59]} Rad8 {[%emt 0:02:12]} 20. Rd2 {[%emt 0:08:01]} Re7 {[%emt 0:02:47]} 21. h4 {[%emt 0:18:08]} Rde8 {[%emt 0:01:07]} 22. Rdd1 {[%emt 0:02:21]} f5 {[%emt 0:03:27]} 23. Re1 {[%emt 0:01:00]} Kf7 {[%emt 0:04:10]} 24. Bd2 {[%emt 0:01:54]} Kf6 {[%emt 0:01:17]} 25. Rxe7 {[%emt 0:00:15]} Rxe7 {[%emt 0:00:06]} 26. g3 {[%emt 0:02:07]} g5 {[%emt 0:03:02]} 27. hxg5+ {[%emt 0:00:10]} hxg5 {[%emt 0:00:06]} 28. Kg2 {[%emt 0:00:51]} c5 {[%emt 0:00:30]} 29. Rh1 {[%emt 0:00:27]} Kg6 {[%emt 0:00:32]} 30. Rh8 {[%emt 0:02:41]} Re8 {[%emt 0:00:16]} 31. Rxe8 {[%emt 0:01:51]} Bxe8 {[%emt 0:00:07]} 32. f4 {[%emt 0:00:26]} g4 {[%emt 0:08:12]} 33. Nd1 {[%emt 0:03:18]} Bb5 {[%emt 0:00:17]} 34. Ne3 {[%emt 0:03:32]} Bd3 {[%emt 0:00:24]} 35. Bc3 {[%emt 0:00:20]} c4 {[%emt 0:03:58]} 36. Bd4 {[%emt 0:02:11]} b5 {[%emt 0:00:22]} 37. Kf2 {[%emt 0:01:48]} Kf7 {[%emt 0:00:50]} 38. Ke1 {[%emt 0:03:12]} Bb4+ {[%emt 0:02:34]} 39. Kd1 {[%emt 0:00:06]} Ke7 {[%emt 0:02:04]} 40. Be5 {[%emt 0:00:30]} Kd7 {[%emt 0:00:39]} 41. a3 {[%emt 0:31:39]} Bc5 {[%emt 0:31:18]} 42. Kd2 {[%emt 0:00:30]} Be4 {[%emt 0:00:09]} 43. a4 {[%emt 0:02:29]} bxa4 {[%emt 0:01:49]} 44. Bc3 {[%emt 0:02:22]} Bd3 {[%emt 0:03:50]} 45. Ba5 {[%emt 0:04:12]} a3 {[%emt 0:01:46]} 46. bxa3 {[%emt 0:00:13]} Bxa3 {[%emt 0:00:09]} 47. Kc3 {[%emt 0:07:03]} Bc5 {[%emt 0:00:18]} 48. Nxc4 {[%emt 0:00:00]} Bxc4 {[%emt 0:00:00]} 49. Kxc4 {[%emt 0:00:00]} Bf2 {[%emt 0:00:00]} 0-1

[Event "FIDE WSTC Open 50 2025"]
[Site "Prague"]
[Date "2025.02.18"]
[Round "2.8"]
[White "Emms, John M"]
[Black "Nielsen, Niels-Peter"]
[Result "1-0"]
[Annotator "ChessBase"]
[ECO "B30"]
[WhiteElo "2409"]
[BlackElo "2086"]
[PlyCount "71"]
[EventDate "2025.02.17"]
[EventType "team-tourn"]
[EventCountry "CZE"]
[SourceTitle "playchess.com"]
[Source "ChessBase"]
[SourceQuality "1"]
[TimeControl "40/5400+30:1800+30"]

1. e4 {[%emt 0:00:10]} c5 {[%emt 0:00:07]} 2. Nf3 {[%emt 0:00:17]} Nc6 {[%emt 0:00:06]} 3. Bb5 {[%emt 0:01:21]} a6 {[%emt 0:05:43]} 4. Bxc6 {[%emt 0:00:10]} dxc6 {[%emt 0:00:30]} 5. d3 {[%emt 0:04:26]} g6 {[%emt 0:03:35]} 6. h3 {[%emt 0:06:20]} Bg7 {[%emt 0:05:10]} 7. Nc3 {[%emt 0:00:12]} Nf6 {[%emt 0:03:02]} 8. Be3 {[%emt 0:03:07]} Nd7 {[%emt 0:08:48]} 9. Qd2 {[%emt 0:02:18]} Qb6 {[%emt 0:18:22]} 10. Rb1 {[%emt 0:22:10]} Bxc3 {[%emt 0:15:18]} 11. Qxc3 {[%emt 0:00:09]} Qb4 {[%emt 0:00:05]} 12. Qd2 {[%emt 0:08:45]} Qxd2+ {[%emt 0:01:15]} 13. Nxd2 {[%emt 0:00:13]} b6 {[%emt 0:02:09]} 14. g4 {[%emt 0:10:38]} f6 {[%emt 0:09:38]} 15. Ke2 {[%emt 0:04:48]} Nf8 {[%emt 0:02:20]} 16. Nc4 {[%emt 0:11:34]} Rb8 {[%emt 0:00:48]} 17. b4 {[%emt 0:01:11]} cxb4 {[%emt 0:03:44]} 18. Nxb6 {[%emt 0:00:28]} a5 {[%emt 0:02:45]} 19. a3 {[%emt 0:04:20]} Nd7 {[%emt 0:01:48]} 20. Nxc8 {[%emt 0:02:57]} Rxc8 {[%emt 0:00:10]} 21. axb4 {[%emt 0:00:03]} axb4 {[%emt 0:00:32]} 22. Rxb4 {[%emt 0:00:05]} h5 {[%emt 0:05:18]} 23. g5 {[%emt 0:04:02]} Kf7 {[%emt 0:00:49]} 24. Rb7 {[%emt 0:00:55]} Ke6 {[%emt 0:02:42]} 25. Rg1 {[%emt 0:01:40]} Rb8 {[%emt 0:00:53]} 26. Rxb8 {[%emt 0:01:14]} Rxb8 {[%emt 0:00:02]} 27. gxf6 {[%emt 0:00:16]} Kxf6 {[%emt 0:00:17]} 28. h4 {[%emt 0:01:05]} Kf7 {[%emt 0:01:07]} 29. Ra1 {[%emt 0:00:34]} Rb7 {[%emt 0:01:24]} 30. Ra6 {[%emt 0:01:27]} Nb8 {[%emt 0:00:56]} 31. Ra8 {[%emt 0:00:20]} Rb1 {[%emt 0:00:54]} 32. Ra7 {[%emt 0:02:22]} Ke6 {[%emt 0:02:37]} 33. Rc7 {[%emt 0:01:49]} Kd6 {[%emt 0:01:22]} 34. Rc8 {[%emt 0:00:04]} Nd7 {[%emt 0:00:47]} 35. Rg8 {[%emt 0:01:05]} Rg1 {[%emt 0:00:32]} 36. Bg5 {[%emt 0:00:42]} 1-0

[Event "FIDE WSTC Open 50 2025"]
[Site "Prague"]
[Date "2025.02.18"]
[Round "2.9"]
[White "Hjartarson, Johann"]
[Black "Davies, Nigel R"]
[Result "1/2-1/2"]
[Annotator "ChessBase"]
[ECO "B42"]
[WhiteElo "2464"]
[BlackElo "2294"]
[PlyCount "83"]
[EventDate "2025.02.17"]
[EventType "team-tourn"]
[EventCountry "CZE"]
[SourceTitle "playchess.com"]
[Source "ChessBase"]
[SourceQuality "1"]
[TimeControl "40/5400+30:1800+30"]

1. e4 {[%emt 0:00:07]} c5 {[%emt 0:00:13]} 2. Nf3 {[%emt 0:00:08]} e6 {[%emt 0:00:10]} 3. d4 {[%emt 0:00:08]} cxd4 {[%emt 0:00:07]} 4. Nxd4 {[%emt 0:00:05]} a6 {[%emt 0:00:08]} 5. Bd3 {[%emt 0:00:25]} Bc5 {[%emt 0:00:34]} 6. Nb3 {[%emt 0:00:08]} Ba7 {[%emt 0:00:14]} 7. O-O {[%emt 0:00:31]} Nc6 {[%emt 0:00:31]} 8. Qg4 {[%emt 0:00:50]} Qf6 {[%emt 0:02:33]} 9. Nc3 {[%emt 0:02:12]} Nge7 {[%emt 0:05:47]} 10. Qg3 {[%emt 0:01:16]} Qg6 {[%emt 0:10:05]} 11. Bf4 {[%emt 0:06:53]} f6 {[%emt 0:07:36]} 12. Bd6 {[%emt 0:04:11]} Qxg3 {[%emt 0:04:56]} 13. hxg3 {[%emt 0:00:20]} Bb8 {[%emt 0:02:51]} 14. Bxb8 {[%emt 0:02:00]} Rxb8 {[%emt 0:00:08]} 15. Rad1 {[%emt 0:02:32]} Kd8 {[%emt 0:06:20]} 16. f4 {[%emt 0:02:49]} Kc7 {[%emt 0:00:22]} 17. Kf2 {[%emt 0:01:51]} d6 {[%emt 0:01:56]} 18. Rd2 {[%emt 0:05:09]} Bd7 {[%emt 0:03:54]} 19. Nd1 {[%emt 0:12:48]} b5 {[%emt 0:07:35]} 20. Ne3 {[%emt 0:00:36]} a5 {[%emt 0:03:10]} 21. c3 {[%emt 0:10:15]} a4 {[%emt 0:07:34]} 22. Nc1 {[%emt 0:00:31]} Na5 {[%emt 0:01:48]} 23. Nc2 {[%emt 0:06:00]} Nec6 {[%emt 0:02:54]} 24. a3 {[%emt 0:03:28]} Nb7 {[%emt 0:02:18]} 25. Nb4 {[%emt 0:04:50]} Nc5 {[%emt 0:00:14]} 26. Bc2 {[%emt 0:01:09]} Na5 {[%emt 0:00:23]} 27. Re2 {[%emt 0:02:04]} Rbd8 {[%emt 0:00:33]} 28. Bb1 {[%emt 0:02:05]} Bc8 {[%emt 0:00:28]} 29. Ba2 {[%emt 0:06:51]} Bb7 {[%emt 0:01:04]} 30. Rfe1 {[%emt 0:00:16]} Nc4 {[%emt 0:04:35]} 31. Ncd3 {[%emt 0:02:09]} Rhe8 {[%emt 0:11:44]} 32. g4 {[%emt 0:08:16]} h6 {[%emt 0:00:34]} 33. g3 {[%emt 0:01:54]} Kb6 {[%emt 0:01:07]} 34. Bb1 {[%emt 0:05:51]} e5 {[%emt 0:03:21]} 35. Nd5+ {[%emt 0:02:49]} Bxd5 {[%emt 0:00:09]} 36. exd5 {[%emt 0:00:04]} Nxd3+ {[%emt 0:00:17]} 37. Bxd3 {[%emt 0:00:03]} Kc5 {[%emt 0:00:16]} 38. Bg6 {[%emt 0:04:37]} Re7 {[%emt 0:00:16]} 39. Rd1 {[%emt 0:00:37]} Rdd7 {[%emt 0:00:23]} 40. Bf5 {[%emt 0:00:28]} Rd8 {[%emt 0:01:54]} 41. Be6 {[%emt 0:31:08]} Kb6 {[%emt 0:34:19]} 42. Kf3 {[%emt 0:00:00]} 1/2-1/2

[Event "FIDE WSTC Open 50 2025"]
[Site "Prague"]
[Date "2025.02.18"]
[Round "2.10"]
[White "Dishman, Stephen"]
[Black "Thorhallsson, Throstur"]
[Result "0-1"]
[Annotator "ChessBase"]
[ECO "A14"]
[WhiteElo "2273"]
[BlackElo "2394"]
[PlyCount "92"]
[EventDate "2025.02.17"]
[EventType "team-tourn"]
[EventCountry "CZE"]
[SourceTitle "playchess.com"]
[Source "ChessBase"]
[SourceQuality "1"]
[TimeControl "40/5400+30:1800+30"]

1. Nf3 {[%emt 0:00:05]} d5 {[%emt 0:01:10]} 2. c4 {[%emt 0:00:12]} e6 {[%emt 0:00:16]} 3. g3 {[%emt 0:00:34]} Nf6 {[%emt 0:00:32]} 4. Bg2 {[%emt 0:00:27]} Be7 {[%emt 0:01:00]} 5. O-O {[%emt 0:00:27]} O-O {[%emt 0:00:23]} 6. d4 {[%emt 0:00:26]} dxc4 {[%emt 0:01:04]} 7. Ne5 {[%emt 0:01:08]} Nc6 {[%emt 0:01:35]} 8. Bxc6 {[%emt 0:00:06]} bxc6 {[%emt 0:00:06]} 9. Nxc6 {[%emt 0:00:04]} Qe8 {[%emt 0:01:18]} 10. Nxe7+ {[%emt 0:00:05]} Qxe7 {[%emt 0:00:06]} 11. Qa4 {[%emt 0:00:05]} e5 {[%emt 0:04:57]} 12. dxe5 {[%emt 0:00:21]} Qxe5 {[%emt 0:00:30]} 13. Qxc4 {[%emt 0:00:25]} Be6 {[%emt 0:02:36]} 14. Qd3 {[%emt 0:01:03]} Rad8 {[%emt 0:01:58]} 15. Qe3 {[%emt 0:00:32]} Qh5 {[%emt 0:01:37]} 16. f3 {[%emt 0:00:14]} Rfe8 {[%emt 0:07:36]} 17. Qg5 {[%emt 0:01:36]} Qh3 {[%emt 0:04:03]} 18. Qc5 {[%emt 0:00:15]} Nd5 {[%emt 0:22:15]} 19. e4 {[%emt 0:34:44]} Nb6 {[%emt 0:01:08]} 20. Nc3 {[%emt 0:00:28]} Nd7 {[%emt 0:08:45]} 21. Qg5 {[%emt 0:15:22]} Ne5 {[%emt 0:06:58]} 22. Qxe5 {[%emt 0:20:17]} Bc4 {[%emt 0:01:54]} 23. Qxe8+ {[%emt 0:00:33]} Rxe8 {[%emt 0:00:02]} 24. Rd1 {[%emt 0:00:29]} f5 {[%emt 0:01:05]} 25. Bf4 {[%emt 0:01:33]} Qh5 {[%emt 0:03:52]} 26. Rd4 {[%emt 0:03:11]} Ba6 {[%emt 0:02:50]} 27. Kg2 {[%emt 0:05:43]} fxe4 {[%emt 0:00:19]} 28. fxe4 {[%emt 0:02:33]} Bb7 {[%emt 0:05:08]} 29. Re1 {[%emt 0:03:47]} Rf8 {[%emt 0:01:06]} 30. Rb4 {[%emt 0:01:11]} Bc8 {[%emt 0:01:37]} 31. h4 {[%emt 0:02:07]} Rxf4 {[%emt 0:06:33]} 32. gxf4 {[%emt 0:00:21]} Qg4+ {[%emt 0:00:06]} 33. Kf2 {[%emt 0:02:06]} Qxf4+ {[%emt 0:00:30]} 34. Ke2 {[%emt 0:00:59]} Ba6+ {[%emt 0:03:25]} 35. Kd1 {[%emt 0:02:09]} Qd6+ {[%emt 0:00:45]} 36. Nd5 {[%emt 0:00:05]} c6 {[%emt 0:00:20]} 37. Rd4 {[%emt 0:01:21]} cxd5 {[%emt 0:00:17]} 38. Rxd5 {[%emt 0:00:59]} Qb4 {[%emt 0:01:38]} 39. Rd2 {[%emt 0:00:44]} Bc4 {[%emt 0:01:08]} 40. b3 {[%emt 0:00:44]} Be6 {[%emt 0:00:36]} 41. Re3 {[%emt 0:07:49]} Qc5 {[%emt 0:00:44]} 42. Rd8+ {[%emt 0:02:49]} Kf7 {[%emt 0:00:08]} 43. Rf3+ {[%emt 0:01:30]} Ke7 {[%emt 0:00:50]} 44. Rff8 {[%emt 0:00:49]} Bg4+ {[%emt 0:06:00]} 45. Kd2 {[%emt 0:00:31]} Bd7 {[%emt 0:02:04]} 46. Ra8 {[%emt 0:01:55]} Qd4+ {[%emt 0:00:22]} 0-1

[Event "FIDE WSTC Open 50 2025"]
[Site "Prague"]
[Date "2025.02.18"]
[Round "2.11"]
[White "Olafsson, Helgi"]
[Black "Josse, Mark"]
[Result "1/2-1/2"]
[Annotator "ChessBase"]
[ECO "D00"]
[WhiteElo "2466"]
[BlackElo "2139"]
[PlyCount "67"]
[EventDate "2025.02.17"]
[EventType "team-tourn"]
[EventCountry "CZE"]
[SourceTitle "playchess.com"]
[Source "ChessBase"]
[SourceQuality "1"]
[TimeControl "40/5400+30:1800+30"]

1. d4 {[%emt 0:00:10]} d5 {[%emt 0:04:00]} 2. Bf4 {[%emt 0:00:12]} Nf6 {[%emt 0:00:35]} 3. e3 {[%emt 0:00:18]} e6 {[%emt 0:00:53]} 4. Nf3 {[%emt 0:00:46]} Bd6 {[%emt 0:00:12]} 5. Nbd2 {[%emt 0:01:12]} O-O {[%emt 0:00:33]} 6. Bd3 {[%emt 0:01:40]} c5 {[%emt 0:00:50]} 7. dxc5 {[%emt 0:00:34]} Bxf4 {[%emt 0:00:40]} 8. exf4 {[%emt 0:00:07]} Qc7 {[%emt 0:01:14]} 9. g3 {[%emt 0:00:45]} Qxc5 {[%emt 0:01:07]} 10. O-O {[%emt 0:00:30]} b6 {[%emt 0:00:10]} 11. Qe2 {[%emt 0:04:24]} Nbd7 {[%emt 0:17:12]} 12. Ne5 {[%emt 0:06:46]} Bb7 {[%emt 0:10:56]} 13. c3 {[%emt 0:08:23]} Rad8 {[%emt 0:12:27]} 14. Rfe1 {[%emt 0:01:40]} Rfe8 {[%emt 0:04:12]} 15. Nb3 {[%emt 0:01:02]} Qd6 {[%emt 0:02:18]} 16. Bb5 {[%emt 0:02:50]} Rf8 {[%emt 0:01:02]} 17. Nd4 {[%emt 0:09:37]} Nc5 {[%emt 0:17:03]} 18. Qe3 {[%emt 0:03:16]} Rc8 {[%emt 0:09:51]} 19. a4 {[%emt 0:03:34]} a6 {[%emt 0:00:34]} 20. Bf1 {[%emt 0:00:06]} Qc7 {[%emt 0:04:26]} 21. f3 {[%emt 0:07:15]} Ne8 {[%emt 0:00:39]} 22. Bh3 {[%emt 0:01:17]} Nd6 {[%emt 0:01:44]} 23. b4 {[%emt 0:04:30]} Nd7 {[%emt 0:04:34]} 24. Nxe6 {[%emt 0:00:30]} fxe6 {[%emt 0:00:05]} 25. Bxe6+ {[%emt 0:04:44]} Kh8 {[%emt 0:00:21]} 26. Bxd7 {[%emt 0:00:05]} Rcd8 {[%emt 0:00:35]} 27. Bg4 {[%emt 0:00:36]} Nc4 {[%emt 0:01:42]} 28. Nxc4 {[%emt 0:02:02]} dxc4 {[%emt 0:00:50]} 29. Qe7 {[%emt 0:02:17]} Qb8 {[%emt 0:01:37]} 30. Re5 {[%emt 0:04:37]} Qa8 {[%emt 0:00:32]} 31. Rae1 {[%emt 0:00:52]} h6 {[%emt 0:00:55]} 32. R1e3 {[%emt 0:01:09]} Bc6 {[%emt 0:00:23]} 33. Qc7 {[%emt 0:01:32]} Rd2 {[%emt 0:01:01]} 34. Re7 {[%emt 0:01:15]} 1/2-1/2

[Event "FIDE WSTC Open 50 2025"]
[Site "Prague"]
[Date "2025.02.18"]
[Round "2.12"]
[White "Frostick, Clive A"]
[Black "Arnason, Jon L"]
[Result "0-1"]
[Annotator "ChessBase"]
[ECO "C47"]
[WhiteElo "2105"]
[BlackElo "2405"]
[PlyCount "70"]
[EventDate "2025.02.17"]
[EventType "team-tourn"]
[EventCountry "CZE"]
[SourceTitle "playchess.com"]
[Source "ChessBase"]
[SourceQuality "1"]
[TimeControl "40/5400+30:1800+30"]

1. e4 {[%emt 0:00:13]} e5 {[%emt 0:00:15]} 2. Nf3 {[%emt 0:00:47]} Nc6 {[%emt 0:00:07]} 3. Nc3 {[%emt 0:00:23]} Nf6 {[%emt 0:00:26]} 4. d4 {[%emt 0:00:57]} exd4 {[%emt 0:00:09]} 5. Nxd4 {[%emt 0:00:09]} Bc5 {[%emt 0:01:59]} 6. Be3 {[%emt 0:08:55]} Bb6 {[%emt 0:00:50]} 7. Be2 {[%emt 0:10:49]} O-O {[%emt 0:06:02]} 8. O-O {[%emt 0:07:07]} Re8 {[%emt 0:01:33]} 9. Nxc6 {[%emt 0:05:57]} bxc6 {[%emt 0:00:31]} 10. Bg5 {[%emt 0:01:45]} h6 {[%emt 0:08:53]} 11. Bh4 {[%emt 0:02:37]} Qe7 {[%emt 0:13:52]} 12. Bd3 {[%emt 0:09:31]} d6 {[%emt 0:04:58]} 13. Kh1 {[%emt 0:09:05]} Bd4 {[%emt 0:18:48]} 14. f4 {[%emt 0:15:37]} Qe6 {[%emt 0:02:02]} 15. Ne2 {[%emt 0:04:12]} Bxb2 {[%emt 0:09:38]} 16. Rb1 {[%emt 0:00:50]} Rb8 {[%emt 0:04:18]} 17. Nd4 {[%emt 0:02:48]} Qg4 {[%emt 0:02:03]} 18. Bxf6 {[%emt 0:03:17]} Qxd1 {[%emt 0:00:14]} 19. Rfxd1 {[%emt 0:00:56]} gxf6 {[%emt 0:02:29]} 20. Nxc6 {[%emt 0:03:52]} Rb6 {[%emt 0:00:23]} 21. Na5 {[%emt 0:03:07]} Bc3 {[%emt 0:08:03]} 22. Nc4 {[%emt 0:02:11]} Rxb1 {[%emt 0:00:15]} 23. Rxb1 {[%emt 0:00:05]} Be6 {[%emt 0:00:50]} 24. Ne3 {[%emt 0:04:56]} Bxa2 {[%emt 0:02:24]} 25. Rb7 {[%emt 0:00:10]} Bd4 {[%emt 0:00:50]} 26. Nf5 {[%emt 0:01:54]} Bb6 {[%emt 0:00:13]} 27. g4 {[%emt 0:00:43]} d5 {[%emt 0:06:40]} 28. Bb5 {[%emt 0:00:41]} Rd8 {[%emt 0:00:23]} 29. Bd3 {[%emt 0:00:43]} dxe4 {[%emt 0:00:56]} 30. Bxe4 {[%emt 0:00:03]} Kf8 {[%emt 0:01:13]} 31. Kg2 {[%emt 0:00:36]} Bc4 {[%emt 0:00:14]} 32. Nxh6 {[%emt 0:00:56]} Ba6 {[%emt 0:00:14]} 33. Kf3 {[%emt 0:00:30]} Bxb7 {[%emt 0:00:44]} 34. Bxb7 {[%emt 0:00:03]} Rd2 {[%emt 0:01:34]} 35. Be4 {[%emt 0:00:10]} a5 {[%emt 0:00:39]} 0-1

[Event "FIDE WSTC Open 50 2025"]
[Site "Prague"]
[Date "2025.02.18"]
[Round "2.13"]
[White "Gronn, Atle"]
[Black "Godena, Michele"]
[Result "1/2-1/2"]
[Annotator "ChessBase"]
[ECO "D02"]
[WhiteElo "2366"]
[BlackElo "2439"]
[PlyCount "49"]
[EventDate "2025.02.17"]
[EventType "team-tourn"]
[EventCountry "CZE"]
[SourceTitle "playchess.com"]
[Source "ChessBase"]
[SourceQuality "1"]
[TimeControl "40/5400+30:1800+30"]

1. d4 {[%emt 0:00:05]} d5 {[%emt 0:00:08]} 2. Nf3 {[%emt 0:00:06]} Bf5 {[%emt 0:02:46]} 3. c4 {[%emt 0:01:44]} e6 {[%emt 0:00:11]} 4. Nc3 {[%emt 0:02:13]} Nf6 {[%emt 0:17:13]} 5. Bg5 {[%emt 0:04:58]} c6 {[%emt 0:02:15]} 6. Qb3 {[%emt 0:06:59]} Qb6 {[%emt 0:04:05]} 7. Bxf6 {[%emt 0:10:52]} gxf6 {[%emt 0:00:45]} 8. e3 {[%emt 0:02:16]} Rg8 {[%emt 0:27:48]} 9. cxd5 {[%emt 0:15:16]} exd5 {[%emt 0:06:42]} 10. Qxb6 {[%emt 0:03:14]} axb6 {[%emt 0:00:08]} 11. Nh4 {[%emt 0:00:53]} Bg6 {[%emt 0:22:45]} 12. Kd2 {[%emt 0:02:16]} Be7 {[%emt 0:03:45]} 13. g3 {[%emt 0:02:07]} f5 {[%emt 0:01:58]} 14. Ng2 {[%emt 0:01:08]} Nd7 {[%emt 0:00:07]} 15. Bd3 {[%emt 0:02:12]} Nf6 {[%emt 0:00:17]} 16. f3 {[%emt 0:03:29]} Kd7 {[%emt 0:02:26]} 17. Nf4 {[%emt 0:03:38]} Ne8 {[%emt 0:00:34]} 18. h4 {[%emt 0:06:41]} h5 {[%emt 0:00:04]} 19. a4 {[%emt 0:02:04]} Bb4 {[%emt 0:02:50]} 20. Kc2 {[%emt 0:01:43]} Nf6 {[%emt 0:00:04]} 21. Rhg1 {[%emt 0:07:44]} Rae8 {[%emt 0:00:53]} 22. Rae1 {[%emt 0:03:30]} Re7 {[%emt 0:00:16]} 23. Kb3 Bd6 {[%emt 0:02:09]} 24. Re2 {[%emt 0:02:09]} Bh7 {[%emt 0:01:03]} 25. Rgg2 {[%emt 0:05:10]} 1/2-1/2

[Event "FIDE WSTC Open 50 2025"]
[Site "Prague"]
[Date "2025.02.18"]
[Round "2.14"]
[White "Bellini, Fabio"]
[Black "Dahl, Fredrik A"]
[Result "1-0"]
[Annotator "ChessBase"]
[ECO "C42"]
[WhiteElo "2408"]
[BlackElo "2198"]
[PlyCount "97"]
[EventDate "2025.02.17"]
[EventType "team-tourn"]
[EventCountry "CZE"]
[SourceTitle "playchess.com"]
[Source "ChessBase"]
[SourceQuality "1"]
[TimeControl "40/5400+30:1800+30"]

1. e4 {[%emt 0:00:04]} e5 {[%emt 0:00:05]} 2. Nf3 {[%emt 0:00:13]} Nf6 {[%emt 0:00:05]} 3. Nxe5 {[%emt 0:00:52]} d6 {[%emt 0:00:10]} 4. Nf3 {[%emt 0:00:23]} Nxe4 {[%emt 0:00:09]} 5. c4 {[%emt 0:01:15]} Nc6 {[%emt 0:01:51]} 6. Nc3 {[%emt 0:04:11]} Nxc3 {[%emt 0:01:18]} 7. dxc3 {[%emt 0:00:57]} Bf5 {[%emt 0:05:43]} 8. Bd3 {[%emt 0:11:58]} Qd7 {[%emt 0:04:18]} 9. Bxf5 {[%emt 0:04:30]} Qxf5 {[%emt 0:00:10]} 10. O-O {[%emt 0:00:32]} Be7 {[%emt 0:04:17]} 11. Re1 {[%emt 0:01:55]} O-O {[%emt 0:03:50]} 12. Qd5 {[%emt 0:09:02]} Qc2 {[%emt 0:20:10]} 13. Bf4 {[%emt 0:12:53]} Bf6 {[%emt 0:02:33]} 14. Qb5 {[%emt 0:03:17]} Rab8 {[%emt 0:03:31]} 15. Rac1 {[%emt 0:02:44]} Qg6 {[%emt 0:01:13]} 16. h3 {[%emt 0:07:48]} h6 {[%emt 0:04:54]} 17. Rcd1 {[%emt 0:04:18]} a6 {[%emt 0:04:25]} 18. Qd5 {[%emt 0:01:04]} Qc2 {[%emt 0:04:10]} 19. Rd2 {[%emt 0:03:39]} Qa4 {[%emt 0:00:51]} 20. Qf5 {[%emt 0:08:36]} Ne7 {[%emt 0:02:32]} 21. Qg4 {[%emt 0:03:30]} Qxc4 {[%emt 0:04:20]} 22. b3 {[%emt 0:06:08]} h5 {[%emt 0:02:11]} 23. Qg3 {[%emt 0:05:02]} Qxc3 {[%emt 0:01:29]} 24. Bg5 {[%emt 0:00:14]} Nf5 {[%emt 0:12:44]} 25. Qf4 {[%emt 0:00:56]} Bxg5 26. Nxg5 Qf6 {[%emt 0:04:12]} 27. Rd5 {[%emt 0:03:45]} Nh6 {[%emt 0:04:37]} 28. Qxf6 {[%emt 0:00:22]} gxf6 {[%emt 0:00:06]} 29. Ne4 {[%emt 0:00:04]} Kg7 {[%emt 0:01:06]} 30. Ng3 {[%emt 0:00:56]} Rfe8 {[%emt 0:03:34]} 31. Nxh5+ {[%emt 0:00:06]} Kg6 {[%emt 0:00:10]} 32. Nf4+ {[%emt 0:00:08]} Kh7 {[%emt 0:00:10]} 33. Rc1 {[%emt 0:00:41]} Re7 {[%emt 0:01:00]} 34. Rc4 {[%emt 0:01:52]} Rd8 {[%emt 0:00:40]} 35. Rh5 {[%emt 0:00:54]} f5 {[%emt 0:02:38]} 36. Nd5 {[%emt 0:00:24]} Re1+ {[%emt 0:00:13]} 37. Kh2 {[%emt 0:00:01]} c6 {[%emt 0:00:22]} 38. Ne3 {[%emt 0:00:47]} Kg6 {[%emt 0:01:39]} 39. Rch4 {[%emt 0:01:16]} Rh8 {[%emt 0:01:33]} 40. Kg3 {[%emt 0:01:46]} f6 {[%emt 0:00:55]} 41. Kf3 {[%emt 0:01:27]} Kg7 {[%emt 0:05:23]} 42. Nxf5+ {[%emt 0:01:48]} Nxf5 {[%emt 0:00:16]} 43. Rg4+ {[%emt 0:00:05]} Kf7 {[%emt 0:00:28]} 44. Rxh8 {[%emt 0:00:06]} d5 {[%emt 0:00:20]} 45. Rh7+ {[%emt 0:02:30]} Ke6 {[%emt 0:00:07]} 46. Rxb7 {[%emt 0:00:23]} Ke5 {[%emt 0:01:04]} 47. Rg8 {[%emt 0:04:18]} Nh4+ {[%emt 0:00:23]} 48. Kg4 {[%emt 0:01:25]} Re4+ {[%emt 0:00:33]} 49. Kh5 {[%emt 0:00:33]} 1-0

[Event "FIDE WSTC Open 50 2025"]
[Site "Prague"]
[Date "2025.02.18"]
[Round "2.15"]
[White "Kirkebo, Carl Peter"]
[Black "Bellia, Fabrizio"]
[Result "0-1"]
[Annotator "ChessBase"]
[ECO "A13"]
[WhiteElo "2148"]
[BlackElo "2393"]
[PlyCount "62"]
[EventDate "2025.02.17"]
[EventType "team-tourn"]
[EventCountry "CZE"]
[SourceTitle "playchess.com"]
[Source "ChessBase"]
[SourceQuality "1"]
[TimeControl "40/5400+30:1800+30"]

1. c4 {[%emt 0:00:06]} e6 {[%emt 0:01:04]} 2. Nf3 {[%emt 0:00:31]} d5 {[%emt 0:00:24]} 3. g3 {[%emt 0:00:32]} Nf6 {[%emt 0:03:17]} 4. Bg2 {[%emt 0:00:52]} d4 {[%emt 0:00:29]} 5. O-O {[%emt 0:02:17]} c5 {[%emt 0:00:10]} 6. e3 {[%emt 0:01:00]} Nc6 {[%emt 0:00:11]} 7. exd4 {[%emt 0:01:22]} cxd4 {[%emt 0:00:10]} 8. d3 {[%emt 0:01:07]} Bd6 {[%emt 0:06:13]} 9. Na3 {[%emt 0:12:02]} O-O {[%emt 0:07:03]} 10. Nc2 {[%emt 0:02:59]} e5 {[%emt 0:07:14]} 11. b4 {[%emt 0:06:21]} a6 {[%emt 0:06:50]} 12. Rb1 {[%emt 0:15:35]} Bd7 {[%emt 0:04:42]} 13. Re1 {[%emt 0:14:28]} Re8 {[%emt 0:02:27]} 14. Bg5 {[%emt 0:00:48]} h6 {[%emt 0:04:55]} 15. Bxf6 {[%emt 0:01:04]} Qxf6 {[%emt 0:00:07]} 16. Nd2 {[%emt 0:00:21]} Bf8 {[%emt 0:07:10]} 17. Ne4 {[%emt 0:07:37]} Qg6 {[%emt 0:02:00]} 18. Nc5 {[%emt 0:03:59]} Bf5 {[%emt 0:00:11]} 19. Rb3 a5 {[%emt 0:01:16]} 20. a3 {[%emt 0:08:28]} a4 {[%emt 0:04:10]} 21. Rb2 {[%emt 0:00:57]} Bxc5 {[%emt 0:00:08]} 22. bxc5 {[%emt 0:00:07]} Bxd3 {[%emt 0:00:07]} 23. Nb4 {[%emt 0:00:38]} Bxc4 {[%emt 0:00:44]} 24. Nd5 {[%emt 0:01:37]} Bb3 {[%emt 0:01:31]} 25. Rxb3 {[%emt 0:01:54]} axb3 {[%emt 0:00:10]} 26. Nc7 {[%emt 0:02:17]} Qc2 {[%emt 0:01:59]} 27. Qxc2 {[%emt 0:02:23]} bxc2 {[%emt 0:00:05]} 28. Be4 {[%emt 0:00:30]} Rxa3 {[%emt 0:07:55]} 29. Nxe8 {[%emt 0:00:10]} d3 {[%emt 0:00:02]} 30. Rf1 {[%emt 0:03:05]} Nd4 {[%emt 0:00:08]} 31. Nd6 {[%emt 0:00:58]} Rc3 {[%emt 0:01:30]} 0-1